[Event "*** Titled Tuesday Blitz"]
[Site "Chess.com"]
[Date "2021.04.27"]
[Round "8"]
[White "SilviusTiberius"]
[Black "anon6121824"]
[Result "0-1"]
[WhiteElo "2632"]
[BlackElo "2823"]
[TimeControl "180+1"]
[EndTime "11:29:06 PDT"]
[Termination "anon6121824 won by resignation"]

1. e4 {[%clk 0:03:00.9]} 1... Nf6 {[%clk 0:02:57.3]} 2. e5 {[%clk 0:03:00.8]}
2... Nd5 {[%clk 0:02:57.5]} 3. d4 {[%clk 0:03:01.3]} 3... Nb6 {[%clk 0:02:57.8]}
4. a4 {[%clk 0:02:54.2]} 4... a5 {[%clk 0:02:50.9]} 5. f4 {[%clk 0:02:52.1]}
5... d6 {[%clk 0:02:51.1]} 6. Nf3 {[%clk 0:02:52.5]} 6... g6 {[%clk 0:02:50.4]}
7. Bb5+ {[%clk 0:02:44.4]} 7... c6 {[%clk 0:02:49.3]} 8. Bd3 {[%clk 0:02:43.7]}
8... Bg7 {[%clk 0:02:49.5]} 9. O-O {[%clk 0:02:41.3]} 9... dxe5 {[%clk
0:02:49.4]} 10. fxe5 {[%clk 0:02:38.5]} 10... Bg4 {[%clk 0:02:48.5]} 11. c3
{[%clk 0:02:36.5]} 11... O-O {[%clk 0:02:43.3]} 12. h3 {[%clk 0:02:35.5]} 12...
Bxf3 {[%clk 0:02:34.6]} 13. Qxf3 {[%clk 0:02:36.4]} 13... N8d7 {[%clk
0:02:21.3]} 14. Qe2 {[%clk 0:02:26.3]} 14... c5 {[%clk 0:02:10.9]} 15. Nd2
{[%clk 0:02:12.5]} 15... cxd4 {[%clk 0:01:44.5]} 16. cxd4 {[%clk 0:02:13.4]}
16... Nd5 {[%clk 0:01:44.8]} 17. Nf3 {[%clk 0:01:56.2]} 17... N7b6 {[%clk
0:01:12.8]} 18. Bg5 {[%clk 0:01:38.9]} 18... Qd7 {[%clk 0:01:04.6]} 19. Qe4
{[%clk 0:01:33.1]} 19... f6 {[%clk 0:00:59.8]} 20. e6 {[%clk 0:01:21.8]} 20...
Qd6 {[%clk 0:00:58.1]} 21. Bd2 {[%clk 0:01:19.6]} 21... Nb4 {[%clk 0:00:45.1]}
22. Bxb4 {[%clk 0:00:58.6]} 22... axb4 {[%clk 0:00:43.8]} 23. Qxb7 {[%clk
0:00:57.5]} 23... f5 {[%clk 0:00:41.7]} 24. a5 {[%clk 0:00:52.5]} 24... Rfb8
{[%clk 0:00:32.2]} 25. Qxb8+ {[%clk 0:00:29.3]} 25... Rxb8 {[%clk 0:00:27.4]}
26. axb6 {[%clk 0:00:30.2]} 26... Bxd4+ {[%clk 0:00:26.7]} 27. Kh1 {[%clk
0:00:29]} 27... Bxb6 {[%clk 0:00:21.4]} 28. Bc4 {[%clk 0:00:27.3]} 28... Rc8
{[%clk 0:00:20.8]} 29. b3 {[%clk 0:00:26.7]} 29... Qg3 {[%clk 0:00:20.9]} 30.
Rad1 {[%clk 0:00:25.3]} 30... Bc7 {[%clk 0:00:21.1]} 31. Rd7 {[%clk 0:00:23.7]}
31... Bd6 {[%clk 0:00:21.4]} 32. Re1 {[%clk 0:00:19.8]} 32... g5 {[%clk
0:00:17.8]} 33. Rd1 {[%clk 0:00:11.4]} 33... g4 {[%clk 0:00:13]} 34. R7xd6
{[%clk 0:00:11.7]} 34... exd6 {[%clk 0:00:09.8]} 35. e7+ {[%clk 0:00:11.5]}
35... Kg7 {[%clk 0:00:09.8]} 36. Nd4 {[%clk 0:00:11.9]} 36... Qe5 {[%clk
0:00:05.6]} 37. Ne6+ {[%clk 0:00:10.6]} 37... Kh8 {[%clk 0:00:05]} 38. Rf1
{[%clk 0:00:08.3]} 38... gxh3 {[%clk 0:00:05]} 39. gxh3 {[%clk 0:00:09.2]} 39...
Re8 {[%clk 0:00:05.3]} 40. Ng5 {[%clk 0:00:07]} 40... Rxe7 {[%clk 0:00:04.8]}
41. Nf7+ {[%clk 0:00:07]} 41... Rxf7 {[%clk 0:00:05.4]} 42. Bxf7 {[%clk
0:00:07.9]} 42... Qe4+ {[%clk 0:00:06.2]} 43. Kh2 {[%clk 0:00:06.6]} 43... f4
{[%clk 0:00:07.1]} 44. Rg1 {[%clk 0:00:06.8]} 44... h6 {[%clk 0:00:06.1]} 45.
Rg8+ {[%clk 0:00:06.4]} 45... Kh7 {[%clk 0:00:06.7]} 46. Rg2 {[%clk 0:00:06.4]}
46... Qe5 {[%clk 0:00:07]} 47. Bg6+ {[%clk 0:00:06.4]} 47... Kg7 {[%clk
0:00:06.5]} 48. Bc2+ {[%clk 0:00:07]} 48... Kf7 {[%clk 0:00:07]} 49. Rf2 {[%clk
0:00:07.3]} 49... f3+ {[%clk 0:00:06.8]} 50. Kg1 {[%clk 0:00:07.3]} 50... Qg3+
{[%clk 0:00:07.3]} 51. Kf1 {[%clk 0:00:07.4]} 51... Qxh3+ {[%clk 0:00:07.7]} 52.
Ke1 {[%clk 0:00:07.8]} 52... Qe6+ {[%clk 0:00:06.7]} 53. Kd2 {[%clk 0:00:07.5]}
53... Qd5+ {[%clk 0:00:05.3]} 54. Bd3 {[%clk 0:00:07.6]} 54... Ke7 {[%clk
0:00:04.6]} 55. Ke3 {[%clk 0:00:08]} 55... Qxb3 {[%clk 0:00:05.1]} 56. Rxf3
{[%clk 0:00:08.9]} 56... Qe6+ {[%clk 0:00:05.3]} 57. Kf2 {[%clk 0:00:08.9]}
57... Qd5 {[%clk 0:00:05.8]} 58. Re3+ {[%clk 0:00:09.1]} 58... Kd7 {[%clk
0:00:06.3]} 59. Be4 {[%clk 0:00:09.5]} 59... Qf7+ {[%clk 0:00:06.7]} 60. Ke2
{[%clk 0:00:09.7]} 60... Qc4+ {[%clk 0:00:07]} 61. Bd3 {[%clk 0:00:09.4]} 61...
Qa2+ {[%clk 0:00:07.5]} 62. Kf3 {[%clk 0:00:09.5]} 62... b3 {[%clk 0:00:08.4]}
63. Bc4 {[%clk 0:00:09.7]} 63... Qa8+ {[%clk 0:00:08.9]} 64. Kf4 {[%clk
0:00:09.2]} 64... b2 {[%clk 0:00:09.2]} 65. Be6+ {[%clk 0:00:09.7]} 65... Kd8
{[%clk 0:00:08.2]} 66. Bf5 {[%clk 0:00:09.2]} 66... Qa4+ {[%clk 0:00:08]} 67.
Kf3 {[%clk 0:00:09]} 67... Qd1+ {[%clk 0:00:07]} 68. Kf4 {[%clk 0:00:08.1]}
68... b1=Q {[%clk 0:00:05.5]} 69. Bxb1 {[%clk 0:00:08.4]} 69... Qxb1 {[%clk
0:00:06.4]} 70. Re6 {[%clk 0:00:05.8]} 70... Qf1+ {[%clk 0:00:06.5]} 71. Kg3
{[%clk 0:00:05.7]} 71... Qf5 {[%clk 0:00:05.3]} 72. Re1 {[%clk 0:00:04.2]} 72...
Qe5+ {[%clk 0:00:03.9]} 73. Rxe5 {[%clk 0:00:02.7]} 73... dxe5 {[%clk
0:00:04.8]} 74. Kg4 {[%clk 0:00:03.6]} 74... Ke7 {[%clk 0:00:05.3]} 75. Kf5
{[%clk 0:00:04.5]} 75... Kd6 {[%clk 0:00:05.8]} 76. Ke4 {[%clk 0:00:04.3]} 76...
Ke6 {[%clk 0:00:06.1]} 0-1

[Event "*** Titled Tuesday Blitz"]
[Site "Chess.com"]
[Date "2021.04.27"]
[Round "8"]
[White "klimkoj"]
[Black "Durarbayli"]
[Result "1/2-1/2"]
[WhiteElo "2619"]
[BlackElo "2732"]
[TimeControl "180+1"]
[EndTime "11:29:07 PDT"]
[Termination "Game drawn - insufficient material"]

1. e4 {[%clk 0:03:00.9]} 1... e5 {[%clk 0:02:58.4]} 2. Nf3 {[%clk 0:03:00.8]}
2... Nc6 {[%clk 0:02:58.3]} 3. Bb5 {[%clk 0:03:01]} 3... a6 {[%clk 0:02:58]} 4.
Ba4 {[%clk 0:03:01.1]} 4... Nge7 {[%clk 0:02:57.3]} 5. O-O {[%clk 0:03:00.8]}
5... g6 {[%clk 0:02:57]} 6. d4 {[%clk 0:02:52.5]} 6... exd4 {[%clk 0:02:55.5]}
7. Nxd4 {[%clk 0:02:49.7]} 7... Bg7 {[%clk 0:02:55.1]} 8. Nxc6 {[%clk
0:02:49.9]} 8... Nxc6 {[%clk 0:02:52.2]} 9. c3 {[%clk 0:02:49.5]} 9... O-O
{[%clk 0:02:50.8]} 10. Be3 {[%clk 0:02:47.8]} 10... b5 {[%clk 0:02:47.6]} 11.
Bc2 {[%clk 0:02:47.1]} 11... d6 {[%clk 0:02:42.5]} 12. Nd2 {[%clk 0:02:45.2]}
12... Re8 {[%clk 0:02:38]} 13. Nb3 {[%clk 0:02:43.6]} 13... Ne5 {[%clk
0:02:31.7]} 14. Rb1 {[%clk 0:02:29.1]} 14... c5 {[%clk 0:01:57.4]} 15. h3 {[%clk
0:02:26]} 15... Bb7 {[%clk 0:01:51.8]} 16. Nd2 {[%clk 0:02:21.1]} 16... Qc7
{[%clk 0:01:49.8]} 17. b3 {[%clk 0:02:03.8]} 17... Rad8 {[%clk 0:01:44.1]} 18.
Re1 {[%clk 0:01:56.3]} 18... h6 {[%clk 0:01:34.3]} 19. Nf1 {[%clk 0:01:31.4]}
19... d5 {[%clk 0:01:31.4]} 20. f4 {[%clk 0:01:29.7]} 20... dxe4 {[%clk
0:01:28.3]} 21. Qc1 {[%clk 0:01:21.5]} 21... Nd3 {[%clk 0:01:26.7]} 22. Bxd3
{[%clk 0:01:21.9]} 22... exd3 {[%clk 0:01:26.2]} 23. Qd2 {[%clk 0:01:21.3]}
23... b4 {[%clk 0:01:20.7]} 24. cxb4 {[%clk 0:01:20.5]} 24... cxb4 {[%clk
0:01:15.4]} 25. Qf2 {[%clk 0:01:20.9]} 25... Bc3 {[%clk 0:01:07.7]} 26. Nd2
{[%clk 0:01:20.2]} 26... Qc6 {[%clk 0:01:07.4]} 27. f5 {[%clk 0:01:14.2]} 27...
Rxe3 {[%clk 0:01:05.2]} 28. Rxe3 {[%clk 0:01:14.1]} 28... Bd4 {[%clk 0:01:06.1]}
29. Nc4 {[%clk 0:01:09.4]} 29... d2 {[%clk 0:00:57.9]} 30. Rd1 {[%clk 0:01:03]}
30... Bxe3 {[%clk 0:00:57.7]} 31. Nxe3 {[%clk 0:01:03.9]} 31... Re8 {[%clk
0:00:45.1]} 32. Rxd2 {[%clk 0:00:42.9]} 32... Qc1+ {[%clk 0:00:41.4]} 33. Nf1
{[%clk 0:00:42]} 33... g5 {[%clk 0:00:38.2]} 34. Rc2 {[%clk 0:00:39.2]} 34...
Qb1 {[%clk 0:00:31.4]} 35. Rb2 {[%clk 0:00:37.6]} 35... Qa1 {[%clk 0:00:28.2]}
36. Re2 {[%clk 0:00:37.1]} 36... Rxe2 {[%clk 0:00:19.7]} 37. Qxe2 {[%clk
0:00:38]} 37... Qd4+ {[%clk 0:00:20.4]} 38. Kh2 {[%clk 0:00:33.9]} 38... a5
{[%clk 0:00:13.6]} 39. Ng3 {[%clk 0:00:33.7]} 39... Qd5 {[%clk 0:00:09.7]} 40.
Qe8+ {[%clk 0:00:19.8]} 40... Kh7 {[%clk 0:00:09.1]} 41. Qe2 {[%clk 0:00:19.8]}
41... Bc6 {[%clk 0:00:08.7]} 42. Qc2 {[%clk 0:00:17.4]} 42... Kg8 {[%clk
0:00:06.5]} 43. Qe2 {[%clk 0:00:16.9]} 43... Kf8 {[%clk 0:00:06.2]} 44. Qf2
{[%clk 0:00:16.4]} 44... Qd6 {[%clk 0:00:06.2]} 45. Qb2 {[%clk 0:00:12.2]} 45...
Kg8 {[%clk 0:00:04.5]} 46. Qe2 {[%clk 0:00:10.5]} 46... Kf8 {[%clk 0:00:03.7]}
47. Qb2 {[%clk 0:00:10.5]} 47... Kg8 {[%clk 0:00:03.9]} 48. Qe2 {[%clk
0:00:10.7]} 48... Qf4 {[%clk 0:00:01.7]} 49. Qe7 {[%clk 0:00:06.3]} 49... h5
{[%clk 0:00:01.7]} 50. Qd8+ {[%clk 0:00:05.6]} 50... Kg7 {[%clk 0:00:02]} 51.
f6+ {[%clk 0:00:03]} 51... Kh7 {[%clk 0:00:02]} 52. Qf8 {[%clk 0:00:02.9]} 52...
Qxf6 {[%clk 0:00:01.9]} 53. Nxh5 {[%clk 0:00:03]} 53... Qg6 {[%clk 0:00:02.3]}
54. Ng3 {[%clk 0:00:03.1]} 54... g4 {[%clk 0:00:01.6]} 55. h4 {[%clk 0:00:03]}
55... Bd5 {[%clk 0:00:02.5]} 56. h5 {[%clk 0:00:03.3]} 56... Qf6 {[%clk
0:00:02.9]} 57. Qc5 {[%clk 0:00:02]} 57... Qe5 {[%clk 0:00:03.1]} 58. Qf2 {[%clk
0:00:01.8]} 58... Kg7 {[%clk 0:00:03.1]} 59. Qf5 {[%clk 0:00:01.3]} 59... Qxf5
{[%clk 0:00:03.1]} 60. Nxf5+ {[%clk 0:00:02.2]} 60... Kf6 {[%clk 0:00:04]} 61.
Ne3 {[%clk 0:00:03]} 61... Be6 {[%clk 0:00:03.9]} 62. Kg3 {[%clk 0:00:03.3]}
62... Kg5 {[%clk 0:00:04.4]} 63. h6 {[%clk 0:00:03.8]} 63... Kxh6 {[%clk
0:00:04.9]} 64. Nxg4+ {[%clk 0:00:04.3]} 64... Kg5 {[%clk 0:00:05.4]} 65. Ne3
{[%clk 0:00:04.5]} 65... f5 {[%clk 0:00:06.3]} 66. Kf2 {[%clk 0:00:04.1]} 66...
f4 {[%clk 0:00:06.3]} 67. Nc2 {[%clk 0:00:04.6]} 67... Bf5 {[%clk 0:00:05.3]}
68. Nd4 {[%clk 0:00:04.8]} 68... Bb1 {[%clk 0:00:05]} 69. Nc6 {[%clk 0:00:04.1]}
69... Bxa2 {[%clk 0:00:02]} 70. Nxa5 {[%clk 0:00:04.3]} 70... Kg4 {[%clk
0:00:02.1]} 71. Nc6 {[%clk 0:00:04.7]} 71... Bxb3 {[%clk 0:00:02.5]} 72. Nxb4
{[%clk 0:00:05.2]} 72... Bc4 {[%clk 0:00:03.4]} 73. Nc2 {[%clk 0:00:05.2]} 73...
Kg5 {[%clk 0:00:03.7]} 74. Ne3 {[%clk 0:00:05.5]} 74... fxe3+ {[%clk 0:00:03.6]}
75. Kxe3 {[%clk 0:00:06.4]} 75... Bd5 {[%clk 0:00:04.5]} 76. g4 {[%clk
0:00:06.7]} 76... Bg2 {[%clk 0:00:05.4]} 77. Kd4 {[%clk 0:00:07.5]} 77... Kxg4
{[%clk 0:00:06.3]} 1/2-1/2

[Event "*** Titled Tuesday Blitz"]
[Site "Chess.com"]
[Date "2021.04.27"]
[Round "8"]
[White "monikarozman"]
[Black "VinzentSpitzl"]
[Result "0-1"]
[WhiteElo "2205"]
[BlackElo "2406"]
[TimeControl "180+1"]
[EndTime "11:29:13 PDT"]
[Termination "VinzentSpitzl won by checkmate"]

1. d4 {[%clk 0:03:00.9]} 1... d5 {[%clk 0:02:58.8]} 2. c4 {[%clk 0:03:00.8]}
2... e6 {[%clk 0:02:58.2]} 3. Nc3 {[%clk 0:03:00.4]} 3... Bb4 {[%clk 0:02:58.3]}
4. Nf3 {[%clk 0:02:54.1]} 4... Nf6 {[%clk 0:02:48.9]} 5. cxd5 {[%clk 0:02:52.4]}
5... exd5 {[%clk 0:02:47.3]} 6. Bg5 {[%clk 0:02:51.8]} 6... h6 {[%clk
0:02:16.6]} 7. Bh4 {[%clk 0:02:49.6]} 7... Nbd7 {[%clk 0:02:02.8]} 8. e3 {[%clk
0:02:43.4]} 8... g5 {[%clk 0:01:59.1]} 9. Bg3 {[%clk 0:02:41.2]} 9... Ne4 {[%clk
0:01:59.4]} 10. Qc2 {[%clk 0:02:22.7]} 10... h5 {[%clk 0:01:58.4]} 11. h4 {[%clk
0:01:50.9]} 11... Nxg3 {[%clk 0:01:52.8]} 12. fxg3 {[%clk 0:01:51.8]} 12... g4
{[%clk 0:01:53.1]} 13. Nd2 {[%clk 0:01:49.7]} 13... c6 {[%clk 0:01:49.6]} 14.
Bd3 {[%clk 0:01:45.2]} 14... Bd6 {[%clk 0:01:46.5]} 15. O-O-O {[%clk 0:01:43.5]}
15... Nb6 {[%clk 0:01:42]} 16. e4 {[%clk 0:01:42.5]} 16... dxe4 {[%clk
0:01:39.6]} 17. Ndxe4 {[%clk 0:01:37.7]} 17... Be6 {[%clk 0:01:39.6]} 18. Ng5
{[%clk 0:01:24.1]} 18... Qe7 {[%clk 0:01:27.4]} 19. Nxe6 {[%clk 0:01:16.6]}
19... fxe6 {[%clk 0:01:26.8]} 20. Bg6+ {[%clk 0:01:12.4]} 20... Kd7 {[%clk
0:01:24.3]} 21. Rhe1 {[%clk 0:01:11.3]} 21... Raf8 {[%clk 0:01:10.9]} 22. d5
{[%clk 0:01:02]} 22... Nxd5 {[%clk 0:01:06.5]} 23. Nxd5 {[%clk 0:01:00.4]} 23...
cxd5 {[%clk 0:01:06.5]} 24. Kb1 {[%clk 0:00:59.4]} 24... Rc8 {[%clk 0:00:51.4]}
25. Qa4+ {[%clk 0:00:53.1]} 25... Rc6 {[%clk 0:00:50.2]} 26. Qxa7 {[%clk
0:00:49.7]} 26... Kc7 {[%clk 0:00:46.2]} 27. Qa5+ {[%clk 0:00:46.5]} 27... Kb8
{[%clk 0:00:43.2]} 28. Rd4 {[%clk 0:00:46.3]} 28... Rhc8 {[%clk 0:00:34.3]} 29.
Ra4 {[%clk 0:00:44.4]} 29... Ra6 {[%clk 0:00:33.5]} 30. Qb5 {[%clk 0:00:42.4]}
30... Rc5 {[%clk 0:00:20]} 31. Qb3 {[%clk 0:00:35.5]} 31... Rxa4 {[%clk
0:00:17]} 32. Qxa4 {[%clk 0:00:36.4]} 32... Qc7 {[%clk 0:00:12.3]} 33. a3 {[%clk
0:00:31.9]} 33... Bxg3 {[%clk 0:00:12.2]} 34. Rxe6 {[%clk 0:00:27.8]} 34... Rc1+
{[%clk 0:00:12.2]} 35. Ka2 {[%clk 0:00:28]} 35... Qc4+ {[%clk 0:00:08.1]} 36.
Qxc4 {[%clk 0:00:28.1]} 36... Rxc4 {[%clk 0:00:08.9]} 37. Bxh5 {[%clk
0:00:25.5]} 37... Bxh4 {[%clk 0:00:09.2]} 38. Rd6 {[%clk 0:00:25.4]} 38... Rd4
{[%clk 0:00:09.3]} 39. Bf7 {[%clk 0:00:22.1]} 39... Rd2 {[%clk 0:00:09.1]} 40.
Rxd5 {[%clk 0:00:21.3]} 40... Rxg2 {[%clk 0:00:08]} 41. Be6 {[%clk 0:00:13.1]}
41... Bf6 {[%clk 0:00:06.9]} 42. Rb5 {[%clk 0:00:12.5]} 42... Kc7 {[%clk
0:00:05.8]} 43. Bd5 {[%clk 0:00:09.6]} 43... Rf2 {[%clk 0:00:05]} 44. Rxb7+
{[%clk 0:00:09]} 44... Kd6 {[%clk 0:00:05.5]} 45. Be4 {[%clk 0:00:09]} 45... g3
{[%clk 0:00:05.7]} 46. a4 {[%clk 0:00:09.1]} 46... g2 {[%clk 0:00:04.4]} 47.
Bxg2 {[%clk 0:00:09]} 47... Rxg2 {[%clk 0:00:05.3]} 48. Rb6+ {[%clk 0:00:06.7]}
48... Ke7 {[%clk 0:00:05.1]} 49. a5 {[%clk 0:00:07]} 49... Bd4 {[%clk
0:00:05.3]} 50. Rb4 {[%clk 0:00:05.7]} 50... Bc5 {[%clk 0:00:05.1]} 51. Rb5
{[%clk 0:00:06]} 51... Kd6 {[%clk 0:00:05.1]} 52. a6 {[%clk 0:00:05.9]} 52...
Kc6 {[%clk 0:00:04.9]} 53. Rb7 {[%clk 0:00:05.5]} 53... Rg8 {[%clk 0:00:03.2]}
54. Rf7 {[%clk 0:00:02.7]} 54... Ra8 {[%clk 0:00:02.7]} 55. Kb3 {[%clk
0:00:02.8]} 55... Rxa6 {[%clk 0:00:02]} 56. Rf6+ {[%clk 0:00:03.1]} 56... Bd6
{[%clk 0:00:02.6]} 57. Kc4 {[%clk 0:00:03.5]} 57... Rb6 {[%clk 0:00:03]} 58. b3
{[%clk 0:00:03.4]} 58... Rb4+ {[%clk 0:00:03.4]} 59. Kc3 {[%clk 0:00:03.7]}
59... Rb5 {[%clk 0:00:03.2]} 60. Rg6 {[%clk 0:00:03.8]} 60... Kc5 {[%clk
0:00:03.3]} 61. Rg5+ {[%clk 0:00:03.7]} 61... Kc6 {[%clk 0:00:03.6]} 62. Rg6
{[%clk 0:00:04.1]} 62... Rb6 {[%clk 0:00:02.5]} 63. Kc4 {[%clk 0:00:04.1]} 63...
Rb7 {[%clk 0:00:02.8]} 64. Kc3 {[%clk 0:00:04.1]} 64... Rf7 {[%clk 0:00:03.1]}
65. Kc4 {[%clk 0:00:03]} 65... Rf4+ {[%clk 0:00:03.6]} 66. Kc3 {[%clk
0:00:03.2]} 66... Kd5 {[%clk 0:00:04.1]} 67. Rg5+ {[%clk 0:00:03.2]} 67... Be5+
{[%clk 0:00:05]} 68. Kd3 {[%clk 0:00:03.5]} 68... Rf3+ {[%clk 0:00:05.2]} 69.
Kc2 {[%clk 0:00:03.7]} 69... Rc3+ {[%clk 0:00:05.7]} 70. Kd2 {[%clk 0:00:03.7]}
70... Rxb3 {[%clk 0:00:05.7]} 71. Rg8 {[%clk 0:00:03.5]} 71... Ke4 {[%clk
0:00:05.7]} 72. Re8 {[%clk 0:00:02.6]} 72... Rb2+ {[%clk 0:00:05.9]} 73. Ke1
{[%clk 0:00:02.7]} 73... Kd4 {[%clk 0:00:05.7]} 74. Kf1 {[%clk 0:00:02.9]} 74...
Bf4 {[%clk 0:00:05.2]} 75. Ke1 {[%clk 0:00:02.2]} 75... Kd3 {[%clk 0:00:05.1]}
76. Kf1 {[%clk 0:00:02.5]} 76... Be3 {[%clk 0:00:04.7]} 77. Re7 {[%clk
0:00:01.5]} 77... Bd4 {[%clk 0:00:04.7]} 78. Re8 {[%clk 0:00:01.4]} 78... Rf2+
{[%clk 0:00:05.1]} 79. Ke1 {[%clk 0:00:01.3]} 79... Rg2 {[%clk 0:00:05.5]} 80.
Kf1 {[%clk 0:00:01.7]} 80... Rg1# {[%clk 0:00:05.6]} 0-1

[Event "*** Titled Tuesday Blitz"]
[Site "Chess.com"]
[Date "2021.04.27"]
[Round "8"]
[White "Andrii_Prydun"]
[Black "BursaBBSatranc"]
[Result "0-1"]
[WhiteElo "2340"]
[BlackElo "2572"]
[TimeControl "180+1"]
[EndTime "11:29:14 PDT"]
[Termination "BursaBBSatranc won by checkmate"]

1. d4 {[%clk 0:02:14.8]} 1... d5 {[%clk 0:02:59.9]} 2. Nc3 {[%clk 0:02:14.5]}
2... Nf6 {[%clk 0:02:59.8]} 3. Bf4 {[%clk 0:02:14.2]} 3... c5 {[%clk 0:02:40.9]}
4. e3 {[%clk 0:02:11.4]} 4... a6 {[%clk 0:02:34]} 5. dxc5 {[%clk 0:02:08.3]}
5... Nc6 {[%clk 0:02:33.3]} 6. Na4 {[%clk 0:02:07.5]} 6... e5 {[%clk 0:02:31.2]}
7. Bg5 {[%clk 0:02:07.8]} 7... Bxc5 {[%clk 0:02:28.5]} 8. Nxc5 {[%clk
0:02:07.3]} 8... Qa5+ {[%clk 0:02:28.7]} 9. c3 {[%clk 0:02:06.7]} 9... Qxc5
{[%clk 0:02:28.9]} 10. Bxf6 {[%clk 0:01:53.3]} 10... gxf6 {[%clk 0:02:29.8]} 11.
g3 {[%clk 0:01:47.6]} 11... Be6 {[%clk 0:02:17.9]} 12. Bg2 {[%clk 0:01:44.1]}
12... Rd8 {[%clk 0:02:13]} 13. Ne2 {[%clk 0:01:42.6]} 13... O-O {[%clk
0:02:07.6]} 14. O-O {[%clk 0:01:41.4]} 14... Kh8 {[%clk 0:02:07.4]} 15. Qd2
{[%clk 0:01:16.2]} 15... b5 {[%clk 0:02:01.6]} 16. Rad1 {[%clk 0:01:14.9]} 16...
a5 {[%clk 0:01:57]} 17. a3 {[%clk 0:01:12.7]} 17... Rd7 {[%clk 0:01:51.7]} 18.
Kh1 {[%clk 0:01:00.7]} 18... Rb8 {[%clk 0:01:50.2]} 19. h3 {[%clk 0:00:51.3]}
19... b4 {[%clk 0:01:47]} 20. axb4 {[%clk 0:00:50.9]} 20... axb4 {[%clk
0:01:47.2]} 21. f4 {[%clk 0:00:51.6]} 21... f5 {[%clk 0:01:18.4]} 22. fxe5
{[%clk 0:00:50.4]} 22... Nxe5 {[%clk 0:01:18.5]} 23. Nf4 {[%clk 0:00:33.2]}
23... Nc4 {[%clk 0:01:10.3]} 24. cxb4 {[%clk 0:00:22.8]} 24... Nxd2 {[%clk
0:01:01.8]} 25. bxc5 {[%clk 0:00:22.3]} 25... Nxf1 {[%clk 0:01:02.3]} 26. Rxf1
{[%clk 0:00:14.5]} 26... Rxb2 {[%clk 0:01:02]} 27. Rc1 {[%clk 0:00:14.3]} 27...
Rd2 {[%clk 0:00:52.8]} 28. c6 {[%clk 0:00:08.1]} 28... Rc7 {[%clk 0:00:53.1]}
29. h4 {[%clk 0:00:05.7]} 29... Kg7 {[%clk 0:00:53]} 30. h5 {[%clk 0:00:05.5]}
30... Kf6 {[%clk 0:00:53.3]} 31. Kg1 {[%clk 0:00:05.2]} 31... Ke5 {[%clk
0:00:53.6]} 32. h6 {[%clk 0:00:03.4]} 32... Kd6 {[%clk 0:00:52.9]} 33. Nh5
{[%clk 0:00:04]} 33... Ke7 {[%clk 0:00:41.2]} 34. Nf4 {[%clk 0:00:03.3]} 34...
Kf6 {[%clk 0:00:38]} 35. Nh5+ {[%clk 0:00:02.5]} 35... Kg6 {[%clk 0:00:36.6]}
36. Nf4+ {[%clk 0:00:03.4]} 36... Kxh6 {[%clk 0:00:36.4]} 37. Rc5 {[%clk
0:00:03.9]} 37... Kg7 {[%clk 0:00:30.8]} 38. Bxd5 {[%clk 0:00:04]} 38... Kf6
{[%clk 0:00:27.1]} 39. Bf3 {[%clk 0:00:04]} 39... Ke7 {[%clk 0:00:23.5]} 40. Re5
{[%clk 0:00:02.1]} 40... Kd6 {[%clk 0:00:21.5]} 41. Rb5 {[%clk 0:00:02.7]} 41...
Rc2 {[%clk 0:00:17.9]} 42. Rb7 {[%clk 0:00:02.4]} 42... R2xc6 {[%clk 0:00:15.8]}
43. Bxc6 {[%clk 0:00:01.9]} 43... Rxc6 {[%clk 0:00:16.2]} 44. Rb2 {[%clk
0:00:02.1]} 44... Rc3 {[%clk 0:00:15.8]} 45. Kf2 {[%clk 0:00:03]} 45... Ke5
{[%clk 0:00:15.6]} 46. Rd2 {[%clk 0:00:03.4]} 46... Kf6 {[%clk 0:00:15.6]} 47.
Ne2 {[%clk 0:00:03.1]} 47... Ra3 {[%clk 0:00:15.5]} 48. Nf4 {[%clk 0:00:04]}
48... Kg5 {[%clk 0:00:15]} 49. Ne2 {[%clk 0:00:04.1]} 49... Ra5 {[%clk
0:00:13.8]} 50. Nf4 {[%clk 0:00:05]} 50... h5 {[%clk 0:00:13.9]} 51. Ne2 {[%clk
0:00:05.3]} 51... Bd5 {[%clk 0:00:14.4]} 52. Nf4 {[%clk 0:00:05]} 52... Be4
{[%clk 0:00:14.6]} 53. Ne2 {[%clk 0:00:05.3]} 53... Ra1 {[%clk 0:00:13.3]} 54.
Nf4 {[%clk 0:00:04]} 54... Rh1 {[%clk 0:00:13.7]} 55. Rd8 {[%clk 0:00:02.2]}
55... Rh2+ {[%clk 0:00:13.3]} 56. Kg1 {[%clk 0:00:02.8]} 56... Ra2 {[%clk
0:00:12.3]} 57. Rg8+ {[%clk 0:00:03.7]} 57... Kh6 {[%clk 0:00:10.3]} 58. Rh8+
{[%clk 0:00:03.4]} 58... Kg7 {[%clk 0:00:10.5]} 59. Rxh5 {[%clk 0:00:03.6]}
59... Ra3 {[%clk 0:00:10.9]} 60. Kf2 {[%clk 0:00:03.8]} 60... Ra2+ {[%clk
0:00:10.9]} 61. Kg1 {[%clk 0:00:03.8]} 61... Ra1+ {[%clk 0:00:08.8]} 62. Kf2
{[%clk 0:00:04.7]} 62... Rc1 {[%clk 0:00:08]} 63. Rh4 {[%clk 0:00:05.2]} 63...
Rc2+ {[%clk 0:00:08]} 64. Kg1 {[%clk 0:00:05.2]} 64... Kf6 {[%clk 0:00:08.4]}
65. Rh5 {[%clk 0:00:05.3]} 65... Ke5 {[%clk 0:00:07.6]} 66. Rh8 {[%clk
0:00:05.5]} 66... Kd6 {[%clk 0:00:06.5]} 67. Re8 {[%clk 0:00:05.5]} 67... Kd7
{[%clk 0:00:05.5]} 68. Rh8 {[%clk 0:00:05.2]} 68... Rc3 {[%clk 0:00:05.8]} 69.
Kf2 {[%clk 0:00:05.1]} 69... Rc2+ {[%clk 0:00:06.4]} 70. Kg1 {[%clk 0:00:05.7]}
70... Ra2 {[%clk 0:00:06.8]} 71. Rg8 {[%clk 0:00:03]} 71... Ke7 {[%clk
0:00:06.8]} 72. Rh8 {[%clk 0:00:03.1]} 72... Kf6 {[%clk 0:00:07.1]} 73. Rf8
{[%clk 0:00:03.1]} 73... Ra3 {[%clk 0:00:07.9]} 74. Kf2 {[%clk 0:00:02.5]} 74...
Ra2+ {[%clk 0:00:08.4]} 75. Kg1 {[%clk 0:00:02.5]} 75... Ra6 {[%clk 0:00:07.6]}
76. Rb8 {[%clk 0:00:02.9]} 76... Kg5 {[%clk 0:00:07.3]} 77. Kf2 {[%clk
0:00:03.1]} 77... Ra2+ {[%clk 0:00:07.1]} 78. Kg1 {[%clk 0:00:02.7]} 78... Kg4
{[%clk 0:00:07.7]} 79. Rg8+ {[%clk 0:00:02.1]} 79... Kf3 {[%clk 0:00:08.1]} 80.
Nh5 {[%clk 0:00:01.2]} 80... Kxe3 {[%clk 0:00:07.1]} 81. Nf4 {[%clk 0:00:01.9]}
81... Ra1+ {[%clk 0:00:07.2]} 82. Kh2 {[%clk 0:00:01]} 82... Rh1# {[%clk
0:00:08.1]} 0-1